fUST/lending_fUST_20250729
["ID","MTS","AMOUNT","RATE_DAILY","PERIOD"]
[375698822,1753719049148,-694.54,0.0002,2]
[375698824,1753719049162,-460.0,0.0002,2]
[375698826,1753719049172,-460.0,0.0002,2]
[375698828,1753719049182,-460.0,0.0002,2]
[375698830,1753719049193,-460.0,0.0002,2]
[375698832,1753719049204,-460.0,0.0002,2]
[375698834,1753719049213,-460.0,0.0002,2]
[375698836,1753719049223,-460.0,0.0002,2]
[375698838,1753719049235,-589.54,0.0002,2]
[375698840,1753719049245,-460.0,0.0002,2]
[375698842,1753719049255,-685.78,0.0002,2]
[375698844,1753719049265,-460.0,0.0002,2]
[375698846,1753719049276,-460.0,0.0002,2]
[375698848,1753719049286,-460.0,0.0002,2]
[375698850,1753719049296,-460.0,0.0002,2]
[375698852,1753719049306,-754.28,0.0002,2]
[375698854,1753719049315,-460.0,0.0002,2]
[375698856,1753719049325,-460.0,0.0002,2]
[375698858,1753719049335,-460.0,0.0002,2]
[375698860,1753719049345,-2793.82,0.0002,2]
[375698862,1753719049354,-460.0,0.0002,2]
[375698864,1753719049363,-460.0,0.0002,2]
[375698866,1753719049375,-460.0,0.0002,2]
[375698868,1753719049386,-2321.2,0.0002,2]
[375698870,1753719049396,-659.81,0.0002,2]
[375698872,1753719049405,-460.0,0.0002,2]
[375698874,1753719049415,-460.0,0.0002,2]
[375698876,1753719049425,-614.85,0.0002,2]
[375698878,1753719049435,-462.86,0.0002,2]
[375698880,1753719049448,-460.0,0.0002,2]
[375698882,1753719049457,-460.0,0.0002,2]
[375698884,1753719049467,-497.54,0.0002,2]
[375698886,1753719049476,-460.0,0.0002,2]
[375698888,1753719049486,-460.0,0.0002,2]
[375698890,1753719049496,-460.0,0.0002,2]
[375698892,1753719049506,-460.0,0.0002,2]
[375698894,1753719049516,-561.0,0.0002,2]
[375698896,1753719049526,-482.02,0.0002,2]
[375698898,1753719049535,-2427.8,0.0002,2]
[375698900,1753719049545,-585.97553961,0.0002,2]
[375698902,1753719049554,-706.45,0.0002,2]
[375698904,1753719049564,-460.0,0.0002,2]
[375698906,1753719049574,-1151.31,0.0002,2]
[375698908,1753719049584,-460.0,0.0002,2]
[375698910,1753719049594,-1734.54,0.0002,2]
[375698912,1753719049604,-474.97,0.0002,2]
[375698914,1753719049614,-460.0,0.0002,2]
[375698916,1753719049624,-460.0,0.0002,2]
[375698918,1753719049633,-460.0,0.0002,2]
[375698920,1753719049643,-460.0,0.0002,2]
[375698922,1753719049652,-1625.52,0.0002,2]
[375698924,1753719049662,-460.0,0.0002,2]
[375698926,1753719049672,-461.43273571,0.0002,2]
[375698928,1753719049681,-460.0,0.0002,2]
[375698930,1753719049694,-460.0,0.0002,2]
[375698932,1753719049704,-460.0,0.0002,2]
[375698934,1753719049713,-460.0,0.0002,2]
[375698936,1753719049723,-1360.12,0.0002,2]
[375698938,1753719049734,-460.0,0.0002,2]
[375698940,1753719049743,-460.0,0.0002,2]
[375698942,1753719049753,-460.0,0.0002,2]
[375698944,1753719049763,-460.0,0.0002,2]
[375698946,1753719049772,-460.0,0.0002,2]
[375698948,1753719049782,-460.0,0.0002,2]
[375698950,1753719049791,-500.0,0.00020021,2]
[375698952,1753719049802,-501.88421175,0.00020021,2]
[375698954,1753719049811,-500.0,0.00020021,2]
[375698956,1753719049820,-1000.0,0.00020021,2]
[375698958,1753719049830,-1000.0,0.00020021,2]
[375698960,1753719049840,-1000.0,0.00020021,2]
[375698962,1753719049851,-152.77755015,0.00020021,2]
[375698964,1753719049861,-712.32287949,0.00020021,2]
[375698966,1753719049870,-1000.0,0.00020021,2]
[375698968,1753719049880,-1000.0,0.00020021,2]
[375698970,1753719049891,-503.40377634,0.00020021,2]
[375698972,1753719049900,-500.0,0.00020021,2]
[375698974,1753719049910,-1000.0,0.00020021,2]
[375698976,1753719049920,-1000.0,0.00020021,2]
[375698978,1753719049929,-1000.0,0.00020021,2]
[375698980,1753719049939,-1000.0,0.00020021,2]
[375698982,1753719049949,-500.0,0.00020021,2]
[375698984,1753719049958,-500.0,0.00020021,2]
[375698986,1753719049968,-1000.0,0.00020021,2]
[375698988,1753719049977,-489.15162157,0.00020021,2]
[375698990,1753719049987,-1000.0,0.00020021,2]
[375698992,1753719049997,-1129.44958979,0.00020021,2]
[375698994,1753719050007,-1000.0,0.00020021,2]
[375698996,1753719050017,-500.0,0.00020021,2]
[375698998,1753719050026,-500.0,0.00020026,2]
[375699000,1753719050036,-500.0,0.00020026,2]
[375699002,1753719050045,-167.64355203,0.00020026,2]
[375699004,1753719050054,-296.57187402,0.00020103,2]
[375699006,1753719050064,-1500.0,0.00020268,2]
[375699008,1753719050074,-1000.0,0.00020268,2]
[375699010,1753719050083,-2975.55,0.00020273,2]
[375699012,1753719050093,-460.0,0.00020273,2]
[375699014,1753719050102,-460.0,0.00020273,2]
[375699016,1753719050112,-460.0,0.00020273,2]
[375699018,1753719050121,-716.46,0.00020273,2]
[375699020,1753719050131,-864.59,0.00020273,2]
[375699022,1753719050141,-460.0,0.00020273,2]
[375699024,1753719050151,-460.0,0.00020273,2]
[375699026,1753719050165,-460.0,0.00020273,2]
[375699028,1753719050175,-460.0,0.00020273,2]
[375699030,1753719050184,-460.0,0.00020273,2]
[375699032,1753719050195,-460.0,0.00020273,2]
[375699034,1753719050205,-542.27,0.00020273,2]
[375699036,1753719050214,-460.0,0.00020273,2]
[375699038,1753719050224,-460.0,0.00020273,2]
[375699040,1753719050234,-1537.75,0.00020273,2]
[375699042,1753719050244,-644.18,0.00020273,2]
[375699044,1753719050254,-460.0,0.00020273,2]
[375699046,1753719050264,-460.0,0.00020273,2]
[375699048,1753719050273,-602.55,0.00020273,2]
[375699050,1753719050283,-460.0,0.00020273,2]
[375699053,1753719050299,-460.0,0.00020273,2]
[375699055,1753719050312,-460.0,0.00020273,2]
[375699057,1753719050322,-460.0,0.00020273,2]
[375699059,1753719050332,-460.0,0.00020273,2]
[375699061,1753719050342,-460.0,0.00020273,2]
[375699063,1753719050352,-460.0,0.00020273,2]
[375699065,1753719050362,-711.49,0.00020273,2]
[375699067,1753719050372,-460.0,0.00020273,2]
[375699069,1753719050382,-460.0,0.00020273,2]
[375699071,1753719050392,-460.0,0.00020273,2]
[375699073,1753719050401,-501.02,0.00020273,2]
[375699075,1753719050411,-2059.23,0.00020273,2]
[375699077,1753719050420,-240.0,0.00020273,2]
[375699079,1753719050430,-460.0,0.00020273,2]
[375699081,1753719050442,-1416.42,0.00020273,2]
[375699083,1753719050451,-460.0,0.00020273,2]
[375699085,1753719050461,-460.0,0.00020273,2]
[375699087,1753719050471,-460.0,0.00020273,2]
[375699089,1753719050481,-460.0,0.00020273,2]
[375699092,1753719050491,-460.0,0.00020273,2]
[375699094,1753719050501,-460.0,0.00020273,2]
[375699096,1753719050510,-463.13467232,0.00020273,2]
[375699097,1753719050520,-460.0,0.00020273,2]
[375699099,1753719050530,-460.0,0.00020273,2]
[375699101,1753719050540,-460.0,0.00020273,2]
[375699104,1753719050551,-460.0,0.00020273,2]
[375699106,1753719050561,-460.0,0.00020273,2]
[375699107,1753719050571,-526.66642539,0.00020273,2]
[375699110,1753719050582,-460.0,0.00020273,2]
[375699112,1753719050591,-460.0,0.00020273,2]
[375699114,1753719050602,-460.0,0.00020273,2]
[375699116,1753719050611,-460.0,0.00020273,2]
[375699117,1753719050621,-460.0,0.00020273,2]
[375699119,1753719050631,-709.77,0.00020273,2]
[375699122,1753719050640,-703.63,0.00020273,2]
[375699124,1753719050650,-496.55,0.00020273,2]
[375699126,1753719050660,-460.0,0.00020273,2]
[375699128,1753719050669,-460.0,0.00020273,2]
[375699130,1753719050679,-460.0,0.00020273,2]
[375699131,1753719050688,-460.0,0.00020273,2]
[375699134,1753719050701,-822.77,0.00020273,2]
[375699136,1753719050711,-460.0,0.00020273,2]
[375699138,1753719050721,-460.0,0.00020273,2]
[375699140,1753719050731,-1149.59,0.00020273,2]
[375699142,1753719050741,-460.0,0.00020273,2]
[375699143,1753719050751,-460.0,0.00020273,2]
[375699145,1753719050760,-460.0,0.00020273,2]
[375699147,1753719050771,-460.0,0.00020273,2]
[375699149,1753719050780,-460.0,0.00020273,2]
[375699151,1753719050790,-460.0,0.00020273,2]
[375699153,1753719050800,-460.0,0.00020273,2]
[375699155,1753719050810,-460.0,0.00020273,2]
[375699157,1753719050820,-3542.71,0.00020273,2]
[375699159,1753719050830,-460.0,0.00020273,2]
[375699161,1753719050839,-460.0,0.00020273,2]
[375699164,1753719050849,-460.0,0.00020273,2]
[375699165,1753719050859,-460.0,0.00020273,2]
[375699168,1753719050870,-694.54,0.00020273,2]
[375699170,1753719050880,-342.0511947,0.00020273,2]
[375699172,1753719050890,-460.0,0.00020273,2]
[375699174,1753719050899,-460.0,0.00020273,2]
[375699176,1753719050909,-460.0,0.00020273,2]
[375699178,1753719050919,-460.0,0.00020273,2]
[375699180,1753719050928,-460.0,0.00020273,2]
[375699182,1753719050938,-460.0,0.00020273,2]
[375699184,1753719050950,-589.54,0.00020273,2]
[375699186,1753719050960,-460.0,0.00020273,2]
[375699188,1753719050969,-685.78,0.00020273,2]
[375699190,1753719050979,-460.0,0.00020273,2]
[375699191,1753719050988,-754.28,0.00020273,2]
[375699203,1753719051161,-460.0,0.00020273,2]
[375699205,1753719051172,-460.0,0.00020273,2]
[375699207,1753719051181,-2793.82,0.00020273,2]
[375699209,1753719051192,-460.0,0.00020273,2]
[375699211,1753719051202,-460.0,0.00020273,2]
[375699213,1753719051211,-460.0,0.00020273,2]
[375699215,1753719051221,-2321.2,0.00020273,2]
[375699217,1753719051231,-659.81,0.00020273,2]
[375699219,1753719051240,-460.0,0.00020273,2]
[375699221,1753719051249,-451.21176242,0.00020273,2]
[375699223,1753719051258,-614.85,0.00020273,2]
[375699225,1753719051267,-462.86,0.00020273,2]
[375699227,1753719051277,-460.0,0.00020273,2]
[375699229,1753719051286,-460.0,0.00020273,2]
[375699231,1753719051295,-497.54,0.00020273,2]
[375699233,1753719051305,-460.0,0.00020273,2]
[375699235,1753719051314,-460.0,0.00020273,2]
[375699237,1753719051323,-460.0,0.00020273,2]
[375699239,1753719051333,-460.0,0.00020273,2]
[375699241,1753719051342,-561.0,0.00020273,2]
[375699243,1753719051351,-482.02,0.00020273,2]
[375699245,1753719051360,-2427.8,0.00020273,2]
[375699247,1753719051370,-706.45,0.00020273,2]
[375699249,1753719051379,-1151.31,0.00020273,2]
[375699251,1753719051388,-460.0,0.00020273,2]
[375699253,1753719051398,-1734.54,0.00020273,2]
[375699255,1753719051407,-474.97,0.00020273,2]
[375699257,1753719051417,-460.0,0.00020273,2]
[375699259,1753719051426,-460.0,0.00020273,2]
[375699261,1753719051435,-460.0,0.00020273,2]
[375699263,1753719051445,-460.0,0.00020273,2]
[375699265,1753719051454,-460.0,0.00020273,2]
[375699267,1753719051463,-1625.52,0.00020273,2]
[375699268,1753719051472,-460.0,0.00020273,2]
[375699270,1753719051482,-460.0,0.00020273,2]
[375699272,1753719051491,-460.0,0.00020273,2]
[375699274,1753719051500,-1360.12,0.00020273,2]
[375699276,1753719051510,-460.0,0.00020273,2]
[375699279,1753719051520,-460.0,0.00020273,2]
[375699281,1753719051529,-248.56,0.00020273,2]
[375699283,1753719051538,-460.0,0.00020273,2]
[375699285,1753719051548,-460.0,0.00020273,2]
[375699287,1753719051557,-460.0,0.00020273,2]
[375699288,1753719051566,-346.41692658,0.00020294,2]
[375699290,1753719051576,-312.16666667,0.00020314,2]
[375699292,1753719051585,-214.87999826,0.00020314,2]
[375699294,1753719051594,-12634.73134317,0.00020314,2]
[375699296,1753719051603,-216.06083566,0.00020314,2]
[375699298,1753719051612,-526.58819812,0.00020314,2]
[375699300,1753719051621,-160.0,0.00020314,2]
[375699302,1753719051631,-840.90880427,0.00020314,2]
[375699304,1753719051640,-160.0,0.00020315,2]
[375699306,1753719051649,-160.0,0.00020315,2]
[375699308,1753719051658,-160.0,0.00020319,2]
[375699310,1753719051667,-160.0,0.00020319,2]
[375699312,1753719051676,-231.34820253,0.00020319,2]
[375699314,1753719051687,-160.0,0.00020319,2]
[375699316,1753719051697,-160.0,0.00020319,2]
[375699318,1753719051708,-454.6043428,0.00020319,2]
[375699320,1753719051718,-160.0,0.00020319,2]
[375699322,1753719051727,-160.0,0.00020319,2]
[375699324,1753719051736,-160.0,0.00020319,2]
[375699326,1753719051746,-1272.12733381,0.00020376,2]
[375699328,1753719051755,-160.0,0.00020453,2]
[375699330,1753719051765,-229.23,0.0002046,2]
[375699332,1753719051775,-277.67046138,0.00020491,2]
[375699334,1753719051784,-1000.0,0.00020521,2]
[375699336,1753719051794,-508.03497979,0.00020521,2]
[375699338,1753719051805,-1000.0,0.00020521,2]
[375699340,1753719051815,-1000.0,0.00020521,2]
[375699342,1753719051824,-1000.0,0.00020521,2]
[375699344,1753719051837,-1000.0,0.00020521,2]
[375699346,1753719051846,-1000.0,0.00020521,2]
[375699348,1753719051857,-1086.77600702,0.00020521,2]
[375699350,1753719051866,-308.48,0.00020538,3]
[375699352,1753719051876,-2975.55,0.00020547,2]
[375699354,1753719051885,-460.0,0.00020547,2]
[375699356,1753719051895,-460.0,0.00020547,2]
[375699358,1753719051905,-460.0,0.00020547,2]
[375699360,1753719051914,-716.46,0.00020547,2]
[375699362,1753719051925,-864.59,0.00020547,2]
[375699364,1753719051934,-460.0,0.00020547,2]
[375699366,1753719051948,-460.0,0.00020547,2]
[375699368,1753719051958,-460.0,0.00020547,2]
[375699370,1753719051967,-460.0,0.00020547,2]
[375699372,1753719051977,-460.0,0.00020547,2]
[375699374,1753719051987,-542.27,0.00020547,2]
[375699376,1753719051996,-460.0,0.00020547,2]
[375699378,1753719052006,-478.8,0.00020547,2]
[375699380,1753719052016,-1537.75,0.00020547,2]
[375699382,1753719052025,-644.18,0.00020547,2]
[375699384,1753719052035,-460.0,0.00020547,2]
[375699386,1753719052045,-479.3052528,0.00020547,2]
[375699388,1753719052054,-602.55,0.00020547,2]
[375699390,1753719052063,-460.0,0.00020547,2]
[375699392,1753719052072,-460.0,0.00020547,2]
[375699394,1753719052082,-460.0,0.00020547,2]
[375699396,1753719052091,-460.0,0.00020547,2]
[375699398,1753719052100,-460.0,0.00020547,2]
[375699400,1753719052109,-226.00148312,0.00020547,2]
[375699402,1753719052119,-711.49,0.00020547,2]
[375699404,1753719052128,-460.0,0.00020547,2]
[375699406,1753719052138,-460.0,0.00020547,2]
[375699408,1753719052147,-2059.23,0.00020547,2]
[375699410,1753719052157,-460.0,0.00020547,2]
[375699412,1753719052168,-1416.42,0.00020547,2]
[375699414,1753719052177,-460.0,0.00020547,2]
[375699416,1753719052186,-460.0,0.00020547,2]
[375699418,1753719052198,-460.0,0.00020547,2]
[375699420,1753719052208,-460.0,0.00020547,2]
[375699422,1753719052217,-460.0,0.00020547,2]
[375699424,1753719052226,-304.36691828,0.00020547,2]
[375699426,1753719052237,-460.0,0.00020547,2]
[375699428,1753719052246,-460.0,0.00020547,2]
[375699430,1753719052256,-460.0,0.00020547,2]
[375699432,1753719052265,-460.0,0.00020547,2]
[375699434,1753719052274,-460.0,0.00020547,2]
[375699436,1753719052283,-460.0,0.00020547,2]
[375699438,1753719052292,-460.0,0.00020547,2]
[375699440,1753719052302,-460.0,0.00020547,2]
[375699442,1753719052311,-709.77,0.00020547,2]
[375699444,1753719052321,-703.63,0.00020547,2]
[375699446,1753719052330,-496.55,0.00020547,2]
[375699448,1753719052340,-460.0,0.00020547,2]
[375699450,1753719052349,-460.0,0.00020547,2]
[375699452,1753719052358,-460.0,0.00020547,2]
[375699454,1753719052367,-460.0,0.00020547,2]
[375699456,1753719052377,-822.77,0.00020547,2]
[375699458,1753719052386,-460.0,0.00020547,2]
[375699460,1753719052395,-1149.59,0.00020547,2]
[375699462,1753719052405,-460.0,0.00020547,2]
[375699464,1753719052414,-460.0,0.00020547,2]
[375699466,1753719052424,-460.0,0.00020547,2]
[375699468,1753719052433,-460.0,0.00020547,2]
[375699470,1753719052445,-460.0,0.00020547,2]
[375699472,1753719052454,-460.0,0.00020547,2]
[375699474,1753719052463,-460.0,0.00020547,2]
[375699476,1753719052473,-460.0,0.00020547,2]
[375699478,1753719052482,-3542.71,0.00020547,2]
[375699480,1753719052491,-460.0,0.00020547,2]
[375699482,1753719052501,-460.0,0.00020547,2]
[375699484,1753719052510,-460.0,0.00020547,2]
[375699486,1753719052519,-283.9040737,0.00020547,2]
[375699488,1753719052530,-694.54,0.00020547,2]
[375699490,1753719052539,-460.0,0.00020547,2]
[375699492,1753719052548,-460.0,0.00020547,2]
[375699494,1753719052557,-460.0,0.00020547,2]
[375699496,1753719052566,-460.0,0.00020547,2]
[375699498,1753719052575,-460.0,0.00020547,2]
[375699500,1753719052584,-460.0,0.00020547,2]
[375699502,1753719052595,-589.54,0.00020547,2]
[375699504,1753719052604,-460.0,0.00020547,2]
[375699506,1753719052613,-685.78,0.00020547,2]
[375699508,1753719052622,-754.28,0.00020547,2]
[375699510,1753719052631,-460.0,0.00020547,2]
[375699512,1753719052641,-460.0,0.00020547,2]
[375699514,1753719052650,-2793.82,0.00020547,2]
[375699516,1753719052659,-460.0,0.00020547,2]
[375699518,1753719052668,-460.0,0.00020547,2]
[375699520,1753719052677,-2321.2,0.00020547,2]
[375699522,1753719052686,-659.81,0.00020547,2]
[375699524,1753719052698,-460.0,0.00020547,2]
[375699526,1753719052708,-614.85,0.00020547,2]
[375699528,1753719052717,-462.86,0.00020547,2]
[375699531,1753719052727,-460.0,0.00020547,2]
[375699533,1753719052737,-460.0,0.00020547,2]
[375699535,1753719052747,-497.54,0.00020547,2]
[375699537,1753719052756,-460.0,0.00020547,2]
[375699539,1753719052765,-460.0,0.00020547,2]
[375699541,1753719052775,-460.0,0.00020547,2]
[375699543,1753719052784,-460.0,0.00020547,2]
[375699545,1753719052793,-561.0,0.00020547,2]
[375699547,1753719052802,-482.02,0.00020547,2]
[375699549,1753719052811,-2427.8,0.00020547,2]
[375699551,1753719052821,-706.45,0.00020547,2]
[375699553,1753719052830,-460.0,0.00020547,2]
[375699555,1753719052839,-1151.31,0.00020547,2]
[375699557,1753719052848,-1734.54,0.00020547,2]
[375699559,1753719052858,-474.97,0.00020547,2]
[375699561,1753719052867,-460.0,0.00020547,2]
[375699563,1753719052876,-388.81990747,0.00020547,2]
[375699565,1753719052884,-460.0,0.00020547,2]
[375699567,1753719052893,-460.0,0.00020547,2]
[375699569,1753719052902,-1625.52,0.00020547,2]
[375699571,1753719052911,-460.0,0.00020547,2]
[375699573,1753719052920,-460.0,0.00020547,2]
[375699575,1753719052929,-1360.12,0.00020547,2]
[375699577,1753719052939,-460.0,0.00020547,2]
[375699579,1753719052950,-460.0,0.00020547,2]
[375699581,1753719052960,-460.0,0.00020547,2]
[375699583,1753719052969,-460.0,0.00020547,2]
[375699585,1753719052979,-1500.0,0.00020568,2]
[375699587,1753719052989,-506.65538097,0.00020568,2]
[375699589,1753719052998,-1500.0,0.00020568,2]
[375699591,1753719053007,-220.40059662,0.00020568,2]
[375699593,1753719053018,-500.0,0.00020568,2]
[375699595,1753719053027,-500.0,0.00020568,2]
[375699597,1753719053038,-1500.0,0.00020568,2]
[375699599,1753719053048,-503.59439869,0.00020568,2]
[375699601,1753719053057,-1000.0,0.00020568,2]
[375699603,1753719053067,-1000.0,0.00020574,2]
[375699605,1753719053076,-500.0,0.00020746,2]
[375699607,1753719053085,-500.0,0.00020746,2]
[375699609,1753719053095,-3574.0,0.00020782,2]
[375699611,1753719053104,-151.0,0.000208,3]
[375699613,1753719053114,-261.74517672,0.00020816,2]
[375699615,1753719053123,-2434.67890058,0.00020821,2]
[375699617,1753719053134,-201.638848,0.00020821,2]
[375699619,1753719053144,-2975.55,0.00020821,2]
[375699621,1753719053154,-460.0,0.00020821,2]
[375699623,1753719053166,-460.0,0.00020821,2]
[375699625,1753719053175,-716.46,0.00020821,2]
[375699627,1753719053185,-864.59,0.00020821,2]
[375699629,1753719053197,-460.0,0.00020821,2]
[375699631,1753719053206,-460.0,0.00020821,2]
[375699633,1753719053216,-397.99319594,0.00020821,2]
[375699634,1753719053225,-460.0,0.00020821,2]
[375699636,1753719053235,-460.0,0.00020821,2]
[375699638,1753719053245,-542.27,0.00020821,2]
[375699641,1753719053255,-460.0,0.00020821,2]
[375699643,1753719053265,-1537.75,0.00020821,2]
[375699645,1753719053274,-644.18,0.00020821,2]
[375699647,1753719053283,-602.55,0.00020821,2]
[375699649,1753719053293,-460.0,0.00020821,2]
[375699651,1753719053303,-460.0,0.00020821,2]
[375699653,1753719053312,-460.0,0.00020821,2]
[375699655,1753719053322,-460.0,0.00020821,2]
[375699657,1753719053332,-460.0,0.00020821,2]
[375699659,1753719053342,-711.49,0.00020821,2]
[375699661,1753719053351,-460.0,0.00020821,2]
[375699663,1753719053361,-460.0,0.00020821,2]
[375699664,1753719053370,-2059.23,0.00020821,2]
[375699667,1753719053380,-467.69,0.00020821,2]
[375699669,1753719053390,-1416.42,0.00020821,2]
[375699670,1753719053399,-505.18369366,0.00020821,2]
[375699672,1753719053408,-460.0,0.00020821,2]
[375699674,1753719053417,-460.0,0.00020821,2]
[375699676,1753719053427,-460.0,0.00020821,2]
[375699678,1753719053436,-460.0,0.00020821,2]
[375699680,1753719053448,-460.0,0.00020821,2]
[375699682,1753719053457,-460.0,0.00020821,2]
[375699684,1753719053466,-460.0,0.00020821,2]
[375699686,1753719053475,-460.0,0.00020821,2]
[375699689,1753719053485,-460.0,0.00020821,2]
[375699691,1753719053495,-460.0,0.00020821,2]
[375699693,1753719053504,-709.77,0.00020821,2]
[375699694,1753719053513,-703.63,0.00020821,2]
[375699697,1753719053522,-496.55,0.00020821,2]
[375699699,1753719053533,-460.0,0.00020821,2]
[375699701,1753719053542,-460.0,0.00020821,2]
[375699703,1753719053551,-604.81486163,0.00020821,2]
[375699705,1753719053560,-460.0,0.00020821,2]
[375699707,1753719053570,-822.77,0.00020821,2]
[375699709,1753719053579,-460.0,0.00020821,2]
[375699711,1753719053588,-1149.59,0.00020821,2]
[375699713,1753719053597,-460.0,0.00020821,2]
[375699715,1753719053607,-460.0,0.00020821,2]
[375699717,1753719053616,-460.0,0.00020821,2]
[375699718,1753719053626,-460.0,0.00020821,2]
[375699721,1753719053635,-460.0,0.00020821,2]
[375699722,1753719053644,-3542.71,0.00020821,2]
[375699725,1753719053653,-460.0,0.00020821,2]
[375699727,1753719053662,-460.0,0.00020821,2]
[375699729,1753719053672,-694.54,0.00020821,2]
[375699731,1753719053681,-460.0,0.00020821,2]
[375699733,1753719053690,-460.0,0.00020821,2]
[375699734,1753719053701,-460.0,0.00020821,2]
[375699737,1753719053711,-460.0,0.00020821,2]
[375699739,1753719053721,-460.0,0.00020821,2]
[375699741,1753719053730,-589.54,0.00020821,2]
[375699743,1753719053739,-231.82,0.00020821,2]
[375699745,1753719053750,-685.78,0.00020821,2]
[375699746,1753719053759,-754.28,0.00020821,2]
[375699748,1753719053768,-460.0,0.00020821,2]
[375699750,1753719053778,-460.0,0.00020821,2]
[375699752,1753719053787,-2793.82,0.00020821,2]
[375699755,1753719053797,-460.0,0.00020821,2]
[375699757,1753719053806,-460.0,0.00020821,2]
[375699759,1753719053815,-2321.2,0.00020821,2]
[375699761,1753719053824,-659.81,0.00020821,2]
[375699763,1753719053835,-397.53806809,0.00020821,2]
[375699765,1753719053845,-614.85,0.00020821,2]
[375699767,1753719053854,-462.86,0.00020821,2]
[375699769,1753719053863,-460.0,0.00020821,2]
[375699771,1753719053873,-460.0,0.00020821,2]
[375699773,1753719053882,-497.54,0.00020821,2]
[375699775,1753719053891,-460.0,0.00020821,2]
[375699777,1753719053901,-460.0,0.00020821,2]
[375699778,1753719053910,-460.0,0.00020821,2]
[375699780,1753719053920,-460.0,0.00020821,2]
[375699782,1753719053929,-561.0,0.00020821,2]
[375699797,1753719054053,-482.02,0.00020821,2]
[375699799,1753719054064,-2427.8,0.00020821,2]
[375699801,1753719054074,-706.45,0.00020821,2]
[375699803,1753719054083,-460.0,0.00020821,2]
[375699805,1753719054092,-1151.31,0.00020821,2]
[375699807,1753719054102,-1734.54,0.00020821,2]
[375699809,1753719054111,-474.97,0.00020821,2]
[375699811,1753719054121,-460.0,0.00020821,2]
[375699813,1753719054130,-460.0,0.00020821,2]
[375699815,1753719054139,-460.0,0.00020821,2]
[375699817,1753719054149,-1625.52,0.00020821,2]
[375699819,1753719054160,-460.0,0.00020821,2]
[375699821,1753719054171,-460.0,0.00020821,2]
[375699823,1753719054180,-1360.12,0.00020821,2]
[375699825,1753719054189,-460.0,0.00020821,2]
[375699827,1753719054201,-427.40957923,0.00020821,2]
[375699845,1753719054364,-32.59042077,0.00020821,2]
[375699847,1753719054373,-460.0,0.00020821,2]
[375699849,1753719054383,-460.0,0.00020821,2]
[375699851,1753719054392,-1459.0959834,0.00020859,2]
[375699853,1753719054402,-1272.12733381,0.00020888,2]
[375699855,1753719054411,-346.0,0.00020895,2]
[375699857,1753719054421,-1036.5,0.00020907,3]
[375699859,1753719054430,-214.87999826,0.00020907,3]